bitfinex/quotes_SOLUSD_20240912
["timestamp","ask_amount","ask_price","bid_price","bid_amount"]
[1726134319038,0.25098,135.07,135.03,14.76623635]
[1726134319236,0.25098,135.07,135.05,14.76623635]
[1726134319747,16.0122,135.09,135.05,14.76623635]
[1726134320247,6.2668,135.1,135.05,14.76623635]
[1726134320656,6.2668,135.1,135.07,14.76623635]
[1726134321042,0.12549,135.09,135.07,14.76623635]
[1726134321438,0.25098,135.09,135.07,14.76623635]
[1726134323564,0.2601287,135.11,135.07,14.76623635]
[1726134323735,0.2601287,135.11,135.09,14.76623635]
[1726134323935,0.2601287,135.11,135.02,23.776884]
[1726134324152,0.2601287,135.11,135.03,20.0]
[1726134324367,0.2601287,135.11,135.07,14.76623635]
[1726134325233,0.12549,135.1,135.07,14.76623635]
[1726134325660,0.2601287,135.11,135.09,14.76623635]
[1726134348087,0.2601287,135.11,135.04,5.97520079]
[1726134348269,0.2601287,135.11,135.09,14.76623635]
[1726134372805,0.2601287,135.11,135.04,23.776884]
[1726134372994,0.2601287,135.11,135.1,14.76623635]
[1726134374315,0.3856187,135.11,135.1,14.76623635]
[1726134374691,0.3856187,135.11,135.08,14.76623635]
[1726134374892,0.2601287,135.11,135.1,14.76623635]
[1726134376894,15.7292287,135.11,135.03,20.0]
[1726134377086,15.7292287,135.11,135.08,14.76623635]
[1726134377297,15.7292287,135.11,135.09,4.12295354]
[1726134377497,15.7292287,135.11,135.08,14.76623635]
[1726134377689,15.7292287,135.11,135.09,4.12294823]
[1726134377894,15.7292287,135.11,135.08,14.76623635]
[1726134378196,15.7292287,135.11,135.09,4.12294823]
[1726134378515,15.7292287,135.11,135.08,14.76623635]
[1726134378719,15.7292287,135.11,135.09,4.12297423]
[1726134378928,15.7292287,135.11,135.08,14.76623635]
[1726134379517,15.7292287,135.11,135.09,4.12300447]
[1726134379818,15.7292287,135.11,135.08,14.76623635]
[1726134384216,0.25098,135.1,135.06,14.76623635]
[1726134384432,0.25098,135.1,135.07,4.12347891]
[1726134384600,24.027864,135.1,135.06,14.76623635]
[1726134384804,24.027864,135.1,135.07,4.12348157]
[1726134385121,24.027864,135.1,135.02,20.0]
[1726134385424,6.0642,135.09,135.03,4.12348943]
[1726134385599,16.5586,135.07,135.04,4.12348943]
[1726134385805,16.5586,135.07,135.01,14.76623635]
[1726134385806,8.1666073,135.06,135.01,14.76623635]
[1726134385997,8.1666073,135.06,135.02,4.12463406]
[1726134386217,8.1666073,135.06,135.03,4.12463406]
[1726134386398,6.31518,135.06,135.01,14.76623635]
[1726134386600,6.31518,135.06,135.02,4.12477267]
[1726134386794,6.31518,135.06,135.03,14.76623635]
[1726134387021,6.18969,135.06,135.03,14.76623635]
[1726134390519,40.059384,135.05,135.0,4.12513403]
[1726134390718,0.25098,135.04,135.0,14.76623635]
[1726134391301,0.25098,135.04,134.98,20.0]
[1726134391525,0.25098,135.04,134.99,14.76623635]
[1726134392029,0.25098,135.04,134.97,4.38585652]
[1726134392030,0.25098,135.04,134.97,4.38598427]
[1726134392216,0.25098,135.04,134.99,14.76623635]
[1726134394128,0.25098,135.04,135.01,14.76623635]
[1726134394904,16.2825,135.05,135.01,14.76623635]
[1726134399139,2.10253079,135.04,135.01,14.76623635]
[1726134399638,0.25098,135.04,135.01,14.76623635]
[1726134400425,0.25098,135.04,134.99,14.76623635]
[1726134402043,0.25098,135.04,134.97,4.38556136]
[1726134402325,6.1826,135.03,134.97,20.2601287]
[1726134402542,6.1826,135.03,134.99,14.76623635]
[1726134403141,6.1826,135.03,134.97,0.2601287]
[1726134403142,16.5282,135.01,134.97,0.2601287]
[1726134403427,6.4613,135.0,134.97,0.2601287]
[1726134403634,0.12549,134.99,134.97,0.2601287]
[1726134404408,6.58679,135.0,134.97,0.2601287]
[1726134404610,6.4613,135.0,134.97,0.2601287]
[1726134406216,0.12549,134.99,134.97,0.2601287]
[1726134407317,24.027864,134.99,134.97,0.2601287]
[1726134409451,0.25098,134.99,134.97,0.2601287]
[1726134411046,24.027864,134.99,134.97,0.2601287]
[1726134412339,39.486284,134.98,134.97,0.2601287]
[1726134412533,39.737264,134.98,134.97,0.2601287]
[1726134413240,41.58993122,134.98,134.97,0.2601287]
[1726134413621,39.737264,134.98,134.97,0.2601287]
[1726134414337,39.737264,134.98,134.93,20.2601287]
[1726134414338,47.693114,134.98,134.93,20.2601287]
[1726134414522,24.027864,134.97,134.93,0.2601287]
[1726134414838,23.776884,134.95,134.93,0.2601287]
[1726134415041,17.37021806,134.94,134.93,0.2601287]
[1726134415355,15.51708,134.94,134.93,0.2601287]
[1726134416219,15.39159,134.94,134.93,0.2601287]
[1726134420026,15.2661,134.94,134.93,0.2601287]
[1726134420436,15.2661,134.94,134.93,15.02636505]
[1726134421219,16.333,134.97,134.93,15.02636505]
[1726134421439,0.12549,134.96,134.93,15.02636505]
[1726134421944,0.12549,134.96,134.93,0.2601287]
[1726134422249,0.12549,134.96,134.93,15.02636505]
[1726134423055,0.25098,134.96,134.93,15.02636505]
[1726134430838,2.10381796,134.96,134.93,0.2601287]
[1726134431831,0.25098,134.96,134.93,0.2601287]
[1726134432032,0.25098,134.96,134.93,15.02636505]
[1726134433338,0.12549,134.96,134.93,15.02636505]
[1726134433746,0.25098,134.96,134.93,15.02636505]
[1726134434456,0.25098,134.96,134.93,0.2601287]
[1726134436366,25.88075842,134.96,134.93,0.2601287]
[1726134436543,24.027864,134.96,134.93,0.2601287]
[1726134436746,23.902374,134.96,134.93,0.2601287]
[1726134436946,0.12549,134.95,134.93,0.2601287]
[1726134437860,1.97856693,134.95,134.93,0.2601287]
[1726134438063,0.12549,134.94,134.93,0.2601287]
[1726134446972,30.416674,134.94,134.93,0.2601287]
[1726134447152,30.542164,134.94,134.93,0.2601287]
[1726134447974,45.711164,134.94,134.93,0.2601287]
[1726134453966,45.711164,134.94,134.89,0.2601287]
[1726134453967,6.6716,134.9,134.89,0.2601287]
[1726134454162,39.090084,134.9,134.89,0.2601287]
[1726134454358,39.341064,134.9,134.89,0.2601287]
[1726134455286,45.696464,134.9,134.89,0.2601287]
[1726134455474,47.55053652,134.9,134.89,0.2601287]
[1726134456262,21.6686,134.9,134.89,0.2601287]
[1726134456663,15.3132,134.9,134.89,0.2601287]
[1726134456892,15.2348,134.93,134.89,0.2601287]
[1726134458196,25.88164738,134.92,134.89,0.2601287]
[1726134458483,24.027864,134.92,134.89,0.2601287]
[1726134458667,0.12549,134.92,134.89,0.2601287]
[1726134458868,1.97907088,134.92,134.89,0.2601287]
[1726134459187,0.12549,134.92,134.89,0.2601287]
[1726134459684,1.97902202,134.92,134.89,0.2601287]
[1726134460081,0.12549,134.91,134.89,0.2601287]
[1726134462290,46.193884,134.9,134.89,0.2601287]
[1726134462583,46.444864,134.9,134.89,0.2601287]
[1726134464774,48.29885065,134.9,134.89,0.2601287]
[1726134464967,48.29901037,134.9,134.89,0.2601287]
[1726134465289,46.444864,134.9,134.89,0.2601287]
[1726134465665,48.29902516,134.9,134.89,0.2601287]
[1726134466588,48.29897113,134.9,134.89,0.2601287]
[1726134466789,54.97057113,134.9,134.89,0.2601287]
[1726134467388,60.86614143,134.9,134.89,0.2601287]
[1726134467766,62.72041863,134.9,134.89,0.2601287]
[1726134468403,85.01041863,134.9,134.89,0.2601287]
[1726134468581,76.48454143,134.9,134.89,0.2601287]
[1726134468905,54.19454143,134.9,134.89,0.2601287]
[1726134469206,56.04873881,134.9,134.89,0.2601287]
[1726134469879,56.04875257,134.9,134.89,0.2601287]
[1726134470080,54.19454143,134.9,134.89,0.2601287]
[1726134470288,56.0487315,134.9,134.89,0.2601287]
[1726134471881,54.19454143,134.9,134.89,0.2601287]
[1726134476691,56.04873055,134.9,134.89,0.2601287]
[1726134477683,62.72033055,134.9,134.89,0.2601287]
[1726134478089,85.01033055,134.9,134.89,0.2601287]
[1726134478416,83.15614143,134.9,134.89,0.2601287]
[1726134478777,54.19454143,134.9,134.89,0.2601287]
[1726134478995,56.04864909,134.9,134.89,0.2601287]
[1726134479198,54.19454143,134.9,134.89,0.2601287]
[1726134480208,60.86614143,134.9,134.89,0.2601287]
[1726134482004,54.19454143,134.9,134.89,0.2601287]
[1726134482181,56.04865481,134.9,134.89,0.2601287]
[1726134482386,54.19454143,134.9,134.89,0.2601287]
[1726134482584,54.06905143,134.9,134.89,0.2601287]
[1726134482810,55.92303638,134.9,134.89,0.2601287]
[1726134483705,54.06905143,134.9,134.89,0.2601287]
[1726134484007,56.04857954,134.9,134.89,0.2601287]
[1726134484188,54.19454143,134.9,134.89,0.2601287]
[1726134484508,56.04864937,134.9,134.89,0.2601287]
[1726134484982,54.19454143,134.9,134.89,0.2601287]
[1726134485182,56.04864441,134.9,134.89,0.2601287]
[1726134485481,62.72024441,134.9,134.89,0.2601287]
[1726134485988,60.86614143,134.9,134.89,0.2601287]
[1726134486189,62.72037586,134.9,134.89,0.2601287]
[1726134486383,54.19454143,134.9,134.89,0.2601287]
[1726134486602,76.48454143,134.9,134.89,0.2601287]
[1726134486789,54.19454143,134.9,134.89,0.2601287]
[1726134487403,56.04863775,134.9,134.89,0.2601287]
[1726134488312,54.19454143,134.9,134.89,0.2601287]
[1726134489311,56.04861865,134.9,134.89,0.2601287]
[1726134489680,76.48454143,134.9,134.89,0.2601287]
[1726134489883,54.19454143,134.9,134.89,0.2601287]
[1726134490100,60.86614143,134.9,134.89,0.2601287]
[1726134490504,62.72043837,134.9,134.89,0.2601287]
[1726134491001,54.19454143,134.9,134.89,0.2601287]
[1726134491206,83.15614143,134.9,134.89,0.2601287]
[1726134495408,85.01043908,134.9,134.89,0.2601287]
[1726134495712,133.15614143,134.9,134.89,0.1346387]
[1726134496215,133.15614143,134.9,134.85,0.2601287]
[1726134496217,23.776884,134.87,134.85,0.2601287]
[1726134496390,40.203984,134.86,134.85,0.2601287]
[1726134496586,62.493984,134.86,134.85,0.2601287]
[1726134496814,40.203984,134.86,134.85,0.2601287]
[1726134497018,47.9519586,134.86,134.85,0.2601287]
[1726134497502,49.80665342,134.86,134.85,0.2601287]
[1726134497704,49.93214342,134.86,134.85,0.2601287]
[1726134497917,56.60564342,134.86,134.85,0.2601287]
[1726134498206,48.2029386,134.86,134.85,0.2601287]
[1726134498397,50.05768625,134.86,134.85,0.2601287]
[1726134498611,48.2029386,134.86,134.85,0.2601287]
[1726134498808,50.05768321,134.86,134.85,0.2601287]
[1726134499112,78.43228321,134.86,134.85,0.2601287]
[1726134499322,83.2510386,134.86,134.85,0.2601287]
[1726134500994,83.2510386,134.86,134.81,0.2601287]
[1726134500995,54.59622767,134.85,134.81,0.2601287]
[1726134501196,0.12549,134.84,134.81,0.2601287]
[1726134501398,1.98056803,134.84,134.81,0.2601287]
[1726134501622,23.902374,134.83,134.81,0.2601287]
[1726134501795,25.75745263,134.82,134.81,0.2601287]
[1726134502105,25.88294263,134.82,134.81,0.2601287]
[1726134502310,24.027864,134.82,134.81,0.2601287]
[1726134502813,23.902374,134.82,134.81,0.2601287]
[1726134503031,0.12549,134.82,134.81,0.2601287]
[1726134503323,52.5496746,134.86,134.81,0.2601287]
[1726134503516,30.2596746,134.86,134.81,0.2601287]
[1726134503918,24.1750746,134.86,134.81,0.2601287]
[1726134504220,16.472,134.89,134.81,0.2601287]
[1726134504425,24.21197459,134.89,134.81,0.2601287]
[1726134504915,1.85422485,134.88,134.81,0.2601287]
[1726134505717,24.21197459,134.89,134.81,0.2601287]
[1726134505920,46.50197459,134.89,134.81,0.2601287]
[1726134506323,0.12549,134.88,134.81,0.2601287]
[1726134506626,23.776884,134.86,134.81,0.2601287]
[1726134506829,0.25098,134.85,134.81,0.2601287]
[1726134510217,46.50197459,134.89,134.81,0.2601287]
[1726134510522,1.85430866,134.88,134.81,0.2601287]
[1726134510728,1.8542238,134.87,134.81,9.16155136]
[1726134510904,1.8542238,134.87,134.81,0.2601287]
[1726134511706,24.027864,134.86,134.81,0.2601287]
[1726134511927,23.776884,134.84,134.81,0.2601287]
[1726134512129,1.97999235,134.83,134.81,0.2601287]
[1726134512425,0.12549,134.83,134.81,0.2601287]
[1726134512605,1.97999168,134.83,134.81,0.2601287]
[1726134513433,0.12549,134.83,134.81,0.2601287]
[1726134514034,0.25098,134.83,134.81,0.2601287]
[1726134514807,46.50197459,134.89,134.81,0.2601287]
[1726134515132,24.027864,134.88,134.81,0.2601287]
[1726134515312,23.776884,134.86,134.81,0.2601287]
[1726134515513,0.25098,134.85,134.81,0.2601287]
[1726134519041,23.776884,134.84,134.81,0.2601287]
[1726134519333,0.25098,134.83,134.81,0.2601287]
[1726134519707,7.74006222,134.87,134.81,15.02636505]
[1726134519911,23.902374,134.86,134.81,15.02636505]
[1726134520111,0.12549,134.85,134.81,15.02636505]
[1726134520713,0.25098,134.86,134.81,15.02636505]
[1726134521439,7.74006222,134.87,134.83,14.76623635]
[1726134521733,6.5384,134.9,134.85,14.76623635]
[1726134522306,46.53306097,134.92,134.85,14.76623635]
[1726134523620,24.027864,134.91,134.85,14.76623635]
[1726134523804,46.317864,134.91,134.85,14.76623635]
[1726134524128,7.73696097,134.92,134.87,14.76623635]
[1726134524330,39.0562287,134.95,134.87,14.76623635]
[1726134524529,7.73535356,134.94,134.87,14.76623635]
[1726134525034,39.0562287,134.95,134.87,14.76623635]
[1726134525207,39.0562287,134.95,134.89,14.76623635]
[1726134525609,0.2601287,134.95,134.93,14.76623635]
[1726134526135,0.2601287,134.95,134.82,33.776884]
[1726134526310,0.2601287,134.95,134.89,14.76623635]
[1726134526935,0.2601287,134.95,134.91,14.76623635]
[1726134527715,0.2601287,134.95,134.84,10.0]
[1726134528053,0.2601287,134.95,134.9,14.76623635]
[1726134528230,0.12549,134.94,134.9,14.76623635]
[1726134529246,0.2601287,134.95,134.9,14.76623635]
[1726134531040,0.2601287,134.95,134.92,14.76623635]
[1726134531627,0.2601287,134.95,134.9,14.76623635]
[1726134531837,0.25098,134.94,134.9,14.76623635]
[1726134532445,0.25098,134.94,134.88,14.76623635]
[1726134533853,23.776884,134.93,134.88,14.76623635]
[1726134534032,0.25098,134.92,134.88,14.76623635]
[1726134538648,0.25098,134.93,134.88,14.76623635]
[1726134542654,24.027864,134.93,134.88,14.76623635]
[1726134545454,24.027864,134.93,134.86,14.76623635]
[1726134545651,24.027864,134.93,134.87,20.0]
[1726134546247,24.027864,134.93,134.87,25.98297049]
[1726134546548,24.027864,134.93,134.87,20.0]
[1726134548146,24.027864,134.93,134.88,14.76623635]
[1726134548357,22.1986,134.94,134.88,14.76623635]
[1726134549633,0.25098,134.93,134.88,14.76623635]
[1726134550243,24.027864,134.93,134.88,14.76623635]
[1726134555466,22.1986,134.94,134.88,14.76623635]
[1726134556742,0.12549,134.93,134.88,14.76623635]
[1726134557648,0.12549,134.93,134.9,14.76623635]
[1726134557852,22.1986,134.94,134.9,14.76623635]
[1726134558951,22.1986,134.94,134.9,20.74917883]
[1726134559159,22.1986,134.94,134.9,14.76623635]
[1726134559863,0.12549,134.93,134.9,14.76623635]
[1726134560364,0.12549,134.93,134.9,20.74879593]
[1726134560555,0.12549,134.93,134.9,14.76623635]
[1726134562461,22.1986,134.94,134.9,14.76623635]
[1726134564243,22.1986,134.94,134.91,5.98262772]
[1726134564443,22.1986,134.94,134.9,14.76623635]
[1726134564663,22.1986,134.94,134.91,5.98262659]
[1726134564839,22.1986,134.94,134.9,14.76623635]
[1726134565043,22.1986,134.94,134.91,5.98262659]
[1726134565242,22.1986,134.94,134.9,14.76623635]
[1726134565458,22.1986,134.94,134.91,5.98262772]
[1726134565650,22.1986,134.94,134.9,14.76623635]
[1726134565965,22.1986,134.94,134.91,5.98262659]
[1726134566138,22.1986,134.94,134.9,14.76623635]
[1726134566343,22.1986,134.94,134.91,5.98262659]
[1726134566344,0.12549,134.93,134.91,5.98262659]
[1726134566655,0.12549,134.93,134.9,14.76623635]
[1726134566860,0.12549,134.93,134.91,5.98262772]
[1726134567065,0.12549,134.93,134.9,14.76623635]
[1726134567243,0.12549,134.93,134.91,5.98262772]
[1726134567449,0.12549,134.93,134.92,5.98262772]
[1726134570453,0.12549,134.93,134.92,11.96551711]
[1726134570669,0.12549,134.93,134.92,5.98288939]
[1726134574546,0.25098,134.93,134.92,5.98288939]
[1726134576051,0.12549,134.93,134.92,5.98288939]
[1726134577658,22.1986,134.94,134.89,14.76623635]
[1726134577869,22.1986,134.94,134.92,5.98290244]
[1726134578061,22.1986,134.94,134.89,14.76623635]
[1726134579980,22.1986,134.94,134.91,14.76623635]
[1726134587878,0.3856187,134.95,134.93,14.76623635]
[1726134587879,0.2601287,134.95,134.93,14.76623635]
[1726134595078,0.2601287,134.95,134.94,20.0]
[1726134600990,0.2601287,134.95,134.92,14.76623635]
[1726134600991,22.1085287,134.95,134.92,14.76623635]
[1726134601197,22.1085287,134.95,134.93,20.0]
[1726134601568,22.1085287,134.95,134.91,14.76623635]
[1726134602782,22.1085287,134.95,134.93,14.76623635]
[1726134604380,0.2601287,134.99,134.93,14.76623635]
[1726134604381,22.0053287,134.99,134.93,14.76623635]
[1726134604582,22.0053287,134.99,134.98,14.76623635]
[1726134610685,22.0053287,134.99,134.96,14.76623635]
[1726134611784,22.0053287,134.99,134.94,20.0]
[1726134612107,22.0053287,134.99,134.96,14.76623635]
[1726134617911,22.0053287,134.99,134.98,14.76623635]
[1726134618209,0.2601287,134.99,134.98,34.76623635]
[1726134628420,0.2601287,134.99,134.98,20.0]
[1726134628716,0.2601287,134.99,134.98,34.76623635]
[1726134630519,0.2601287,134.99,134.98,20.0]
[1726134630701,0.2601287,134.99,134.96,14.76623635]
[1726134630909,0.2601287,134.99,134.97,20.0]
[1726134634922,0.2601287,134.99,134.98,14.76623635]
[1726134636420,0.2601287,134.99,134.98,34.76623635]
[1726134637824,16.2468,135.02,134.98,34.76623635]
[1726134638027,16.2468,135.02,135.01,14.76623635]
[1726134638329,16.2468,135.02,135.01,20.0]
[1726134638514,16.2468,135.02,135.01,34.76623635]
[1726134638709,16.2468,135.02,135.01,40.73945448]
[1726134639108,16.2468,135.02,135.01,34.76623635]
[1726134639309,16.2468,135.02,135.01,40.73927797]
[1726134640215,16.2468,135.02,135.01,34.76623635]
[1726134642911,16.2468,135.02,135.01,20.0]
[1726134643318,16.2468,135.02,135.0,14.76623635]
[1726134644712,16.2468,135.02,135.0,20.7390006]
[1726134644904,16.2468,135.02,135.0,14.76623635]
[1726134645111,16.2468,135.02,134.96,5.97276425]
[1726134645112,6.0788,135.0,134.96,5.97276425]
[1726134645435,15.3441,134.98,134.95,5.97785771]
[1726134645624,15.3441,134.98,134.94,5.97785771]
[1726134645939,0.12549,134.97,134.93,14.76623635]
[1726134646231,15.3441,134.98,134.94,5.97976956]
[1726134648220,0.12549,134.97,134.93,14.76623635]
[1726134648421,0.12549,134.97,134.94,20.0]
[1726134648936,0.12549,134.97,134.94,25.98062472]
[1726134649113,0.12549,134.97,134.94,20.0]
[1726134650528,23.902374,134.97,134.94,20.0]
[1726134650729,6.0341,134.95,134.9,14.76623635]
[1726134650932,7.88689394,134.95,134.89,19.15362436]
[1726134651227,6.0341,134.95,134.91,14.76623635]
[1726134652356,6.0341,134.95,134.92,20.0]
[1726134653026,6.0341,134.95,134.9,24.12786358]
[1726134655118,6.0341,134.95,134.9,20.0]
[1726134655314,6.0341,134.95,134.9,24.12786535]
[1726134655514,16.0974,134.94,134.9,24.12786535]
[1726134656031,16.0974,134.94,134.9,20.0]
[1726134659544,16.0974,134.94,134.9,14.76623635]
[1726134659742,16.0974,134.94,134.91,20.0]
[1726134660754,16.0974,134.94,134.9,14.76623635]
[1726134660952,16.0974,134.94,134.91,20.0]
[1726134662770,16.0974,134.94,134.9,20.0]
[1726134663266,16.0974,134.94,134.93,14.76623635]
[1726134664366,6.0341,134.95,134.93,34.76623635]
[1726134664562,6.0341,134.95,134.94,20.0]
[1726134666070,16.2532,134.97,134.94,20.0]
[1726134666245,16.2532,134.97,134.95,14.76623635]
[1726134666653,16.2532,134.97,134.96,20.0]
[1726134675568,16.2532,134.97,134.96,14.76623635]
[1726134675874,16.2532,134.97,134.96,34.76623635]
[1726134677770,15.4034,135.0,134.96,34.76623635]
[1726134677974,15.4034,135.0,134.98,14.76623635]
[1726134678362,15.4034,135.0,134.96,20.0]
[1726134678562,15.4034,135.0,134.98,14.76623635]
[1726134678870,15.4034,135.0,134.91,20.0]
[1726134679063,15.4034,135.0,134.98,14.76623635]
[1726134683955,15.4034,135.0,134.91,20.0]
[1726134684155,15.4034,135.0,134.96,14.76623635]
[1726134684358,15.4034,135.0,134.97,20.0]
[1726134684657,15.4034,135.0,134.89,0.2601287]
[1726134684858,8.5328449,134.99,134.89,0.2601287]
[1726134685082,1.85257142,134.98,134.93,14.76623635]
[1726134685665,39.119584,134.97,134.89,0.2601287]
[1726134685867,15.46819,134.97,134.92,14.76623635]
[1726134686068,15.3427,134.97,134.92,14.76623635]
[1726134686985,15.3427,134.97,134.93,20.0]
[1726134690762,15.3427,134.97,134.94,14.76623635]
[1726134691489,15.3427,134.97,134.96,14.76623635]
[1726134693982,15.3427,134.97,134.93,20.0]
[1726134694294,15.3427,134.97,134.93,14.76623635]
[1726134694488,15.3427,134.97,134.94,20.0]
[1726134695601,6.4295,134.99,134.95,14.76623635]
[1726134695803,15.2883,135.0,134.98,14.76623635]
[1726134696675,15.2883,135.0,134.99,20.0]
[1726134697205,15.2883,135.0,134.99,14.76623635]
[1726134697498,15.2883,135.0,134.99,34.76623635]
[1726134705595,6.449,135.02,134.99,34.76623635]
[1726134705792,6.449,135.02,135.01,14.76623635]
[1726134707597,6.449,135.02,134.99,20.0]
[1726134707907,6.449,135.02,134.99,14.76623635]
[1726134708111,6.449,135.02,135.0,20.0]
[1726134708997,6.449,135.02,134.99,14.76623635]
[1726134711311,0.12549,135.01,134.99,14.76623635]
[1726134713395,0.12549,135.01,134.89,0.2601287]
[1726134713396,15.0729,135.0,134.89,0.2601287]
[1726134713601,15.0729,135.0,134.94,14.76623635]
[1726134713602,6.5915,134.98,134.94,14.76623635]
[1726134713919,6.5915,134.98,134.95,25.98088442]
[1726134714101,6.5915,134.98,134.96,5.98088442]
[1726134714303,6.5915,134.98,134.97,5.98088442]
[1726134714500,6.71699,134.98,134.97,5.98088442]
[1726134717116,32.34630873,134.98,134.97,5.98088442]
[1726134717297,48.83199873,134.98,134.97,5.98088442]
[1726134717915,46.979564,134.98,134.97,5.98088442]
[1726134720610,23.776884,134.97,134.92,14.76623635]
[1726134720917,0.12549,134.96,134.93,10.10896002]
[1726134721120,0.12549,134.96,134.92,14.76623635]
[1726134721121,0.12549,134.96,134.94,10.10896002]
[1726134721295,0.12549,134.96,134.95,5.98102357]
[1726134721905,0.12549,134.96,134.95,10.10895825]
[1726134722711,0.12549,134.96,134.95,5.98102357]
[1726134722915,0.12549,134.96,134.95,10.1082808]
[1726134723902,30.69080597,134.98,134.95,10.1082808]
[1726134724111,22.9517,134.98,134.96,24.87451715]
[1726134724419,22.9517,134.98,134.97,5.98102357]
[1726134726332,22.9517,134.98,134.97,5.97961662]
[1726134726502,7.74183546,135.02,134.97,5.97961662]
[1726134726503,15.1113,135.01,134.97,5.97961662]
[1726134726703,15.1113,135.01,134.96,14.76623635]
[1726134726919,15.1113,135.01,134.97,4.1268341]
[1726134727115,15.1113,135.01,134.98,4.1268341]
[1726134727441,15.1113,135.01,134.96,14.76623635]
[1726134728023,1.85210391,135.0,134.89,24.0370127]
[1726134728231,15.1113,135.01,134.95,14.76623635]
[1726134728407,0.12549,135.0,134.96,20.0]
[1726134732232,0.12549,135.0,134.97,14.76623635]
[1726134733436,15.1113,135.01,134.97,14.76623635]
[1726134733633,15.1113,135.01,134.99,14.76623635]
[1726134739433,15.1113,135.01,134.96,20.0]
[1726134739621,15.1113,135.01,134.98,14.76623635]
[1726134739825,15.1113,135.01,134.99,20.0]
[1726134742949,15.1113,135.01,135.0,14.76623635]
[1726134744948,0.2601287,135.03,134.98,14.76623635]
[1726134745131,0.2601287,135.03,134.99,20.0]
[1726134746131,0.2601287,135.03,135.0,14.76623635]
[1726134746854,0.2601287,135.03,135.02,14.76623635]
[1726134749056,0.2601287,135.03,134.99,20.0]
[1726134749241,0.2601287,135.03,135.0,14.76623635]
[1726134762053,39.241384,135.01,134.9,3.88136514]
[1726134762339,15.4645,135.01,134.95,14.76623635]
[1726134763561,15.4645,135.01,134.97,14.76623635]
[1726134765339,15.4645,135.01,134.99,14.76623635]
[1726134773273,15.4645,135.01,134.94,8.89362954]
[1726134773453,15.4645,135.01,134.9,10.0]
[1726134773454,15.4645,135.01,134.98,14.76623635]
[1726134774155,15.4645,135.01,134.98,23.65995515]
[1726134774359,15.4645,135.01,134.98,14.76623635]
[1726134775279,15.4645,135.01,134.98,23.65995515]
[1726134775576,15.4645,135.01,134.98,14.76623635]
[1726134776383,15.4645,135.01,134.98,23.65995515]
[1726134776678,15.4645,135.01,134.98,14.76623635]
[1726134785873,6.4819,135.02,135.0,14.76623635]
[1726134786783,6.4819,135.02,135.01,5.97814746]
[1726134786965,0.2601287,135.03,135.01,5.97814746]
[1726134787165,0.2601287,135.03,135.02,20.74438381]
[1726134787582,0.2601287,135.03,135.02,24.8696504]
[1726134789586,0.2601287,135.03,135.02,18.89150294]
[1726134789972,0.2601287,135.03,135.02,24.86894701]
[1726134791273,0.2601287,135.03,135.02,20.74375594]
[1726134791772,0.2601287,135.03,135.02,24.86894701]
[1726134792283,0.2601287,135.03,135.02,20.74363295]
[1726134793089,0.2601287,135.03,135.02,14.76623635]
[1726134793291,0.2601287,135.03,135.02,20.74362744]
[1726134796487,0.2601287,135.03,135.02,20.74375594]
[1726134796661,0.2601287,135.03,135.0,14.76623635]
[1726134796860,0.2601287,135.03,135.01,5.97751408]
[1726134797091,6.4436287,135.03,135.02,5.97751408]
[1726134797267,46.1558927,135.03,134.91,1.29040989]
[1726134797468,0.12549,135.02,134.96,14.76623635]
[1726134797669,0.12549,135.02,134.97,5.97826579]
[1726134797869,0.12549,135.02,134.98,5.97826579]
[1726134798070,0.12549,135.02,134.99,5.97826579]
[1726134798270,0.12549,135.02,135.0,5.97826579]
[1726134798568,0.12549,135.02,135.01,5.97826579]
[1726134799789,0.12549,135.02,135.01,5.89401468]
[1726134802279,0.12549,135.02,134.99,5.89453005]
[1726134802481,0.12549,135.02,135.0,5.89453005]
[1726134802687,0.12549,135.02,134.97,20.0]
[1726134802985,0.12549,135.02,134.98,5.89439936]
[1726134803184,0.12549,135.02,134.97,20.0]
[1726134803185,0.12549,135.02,134.99,5.89439936]
[1726134803489,0.12549,135.02,134.97,20.0]
[1726134803697,0.12549,135.02,134.98,5.8943971]
[1726134803874,0.12549,135.02,134.99,5.89440374]
[1726134804189,0.12549,135.02,135.0,5.89440374]
[1726134804395,0.12549,135.02,134.97,20.0]
[1726134804569,0.12549,135.02,134.98,5.89452536]
[1726134804771,0.12549,135.02,134.99,5.89452767]
[1726134804976,0.12549,135.02,135.0,5.89452767]
[1726134805176,0.12549,135.02,134.97,20.0]